Workbook

Sheet сентябрь
A1: 1 | R1: Часть 2 Учет выдачи книг, брошюр, журналов за сентябрь 20__ г.
A3: число рабочих дней_______________
A4: числа месяца | B4: читателей всего | C4: в том числе учащихся классов | N4: отдельные группы читателей | Q4: число посещений | R4: числа месяца | S4: всего выдано | T4: Распределение книг, брошюр и журналов по содержанию | AN4: электронные издания | AO4: Прочие
C5: 1 класс | D5: 2 класс | E5: 3 класс | F5: 4 класс | G5: 5 класс | H5: 6 класс | I5: 7 класс | J5: 8 класс | K5: 9 класс | L5: 10 класс | M5: 11 класс | N5: учителя | O5: вспомог. | P5: прочие | T5: общественно-политическая литература | U5: естествознание, математика | V5: техника | W5: языкознание | X5: литературоведение | Y5: искусство и спорт | Z5: художественная литература | AA5: справочная | AB5: методическая | AC5: учебная | AD5: на татарском языке
AD6: общественно-политическая литература | AE6: естествознание, математика | AF6: техника | AG6: языкознание | AH6: литературоведение | AI6: искусство и спорт | AJ6: художественная литература | AK6: справочная | AL6: методическая | AM6: учебная
A7: 1 | B7: 2 | C7: 3 | D7: 4 | E7: 5 | F7: 6 | G7: 7 | H7: 8 | I7: 9 | J7: 10 | K7: 11 | L7: 12 | M7: 13 | N7: 14 | O7: 15 | P7: 16 | Q7: 17 | R7: 1 | S7: 2 | T7: 3 | U7: 4 | V7: 5 | W7: 6 | X7: 7 | Y7: 8 | Z7: 9 | AA7: 10 | AB7: 11 | AC7: 12 | AD7: 13 | AE7: 14 | AF7: 15 | AG7: 16 | AH7: 17 | AI7: 18 | AJ7: 19 | AK7: 20 | AL7: 21 | AM7: 22 | AN7: 23 | AO7: 24
A8: К началу месяца | B8: =SUM(C8:P8) -> 0 | R8: к началу месяца | S8: =SUM(T8:AO8) -> 0
A9: 1 | B9: =SUM(C9:P9) -> 7 | N9: 7 | Q9: 7 | R9: 1 | S9: =SUM(T9:AO9) -> 7 | AC9: 7
A10: 2 | B10: 11 | D10: 5 | N10: 6 | Q10: 11 | R10: 2 | S10: 11 | Z10: 5 | AC10: 6
A11: 3 | B11: 12 | E11: 8 | N11: 4 | Q11: 12 | R11: 3 | S11: 12 | Z11: 8 | AC11: 4
A12: 4 | B12: 9 | D12: 5 | M12: 4 | Q12: 9 | R12: 4 | S12: 9 | Z12: 9
A13: 5 | B13: 0 | R13: 5 | S13: 0
A14: 6 | B14: 15 | G14: 15 | Q14: 17 | R14: 6 | S14: 15 | Z14: 15
A15: 7 | B15: 4 | M15: 4 | Q15: 12 | R15: 7 | S15: 6 | Z15: 6
A16: 8 | B16: 12 | H16: 12 | Q16: 23 | R16: 8 | S16: 16 | T16: 2 | Z16: 12 | AO16: 2
A17: 9 | B17: 8 | G17: 8 | Q17: 28 | R17: 9 | S17: 12 | T17: 1 | Z17: 10 | AJ17: 1
A18: 10 | B18: 7 | F18: 1 | G18: 5 | H18: 1 | Q18: 21 | R18: 10 | S18: 13 | T18: 2 | Z18: 11
A19: 11 | B19: 12 | D19: 12 | Q19: 28 | R19: 11 | S19: 28 | T19: 12 | Z19: 12 | AA19: 4
A20: 12 | B20: 0 | R20: 12 | S20: 0
A21: 13 | B21: 3 | F21: 3 | Q21: 18 | R21: 13 | S21: 9 | T21: 1 | Z21: 8
A22: 14 | B22: 5 | F22: 4 | G22: 1 | Q22: 21 | R22: 14 | S22: 16 | T22: 3 | Z22: 7 | AO22: 6
A23: 15 | B23: 6 | F23: 6 | Q23: 31 | R23: 15 | S23: 14 | T23: 4 | Z23: 9 | AA23: 1
A24: 16 | B24: 5 | F24: 1 | N24: 4 | Q24: 21 | R24: 16 | S24: 12 | Z24: 6 | AC24: 6
A25: 17 | B25: 14 | D25: 13 | O25: 1 | Q25: 32 | R25: 17 | S25: 33 | T25: 8 | Z25: 25
A26: 18 | B26: 0 | Q26: 18 | R26: 18 | S26: 18 | Z26: 17 | AC26: 1
A27: 19 | B27: 0 | R27: 19 | S27: 0
A28: 20 | B28: 23 | D28: 11 | E28: 5 | F28: 2 | G28: 3 | N28: 2 | Q28: 31 | R28: 20 | S28: 30 | T28: 5 | Z28: 22 | AA28: 1 | AC28: 2
A29: 21 | B29: 22 | E29: 22 | Q29: 36 | R29: 21 | S29: 39 | T29: 12 | Z29: 22 | AO29: 5
A30: 22 | B30: 19 | D30: 19 | Q30: 39 | R30: 22 | S30: 29 | T30: 8 | Z30: 21
A31: 23 | B31: 22 | D31: 22 | Q31: 42 | R31: 23 | S31: 42 | Z31: 36 | AO31: 6
A32: 24 | B32: 28 | D32: 27 | E32: 1 | Q32: 45 | R32: 24 | S32: 40 | T32: 1 | Z32: 39
A33: 25 | B33: 0 | Q33: 18 | R33: 25 | S33: 16 | T33: 4 | Z33: 12
A34: 26 | B34: 0 | R34: 26 | S34: 0
A35: 27 | B35: 5 | N35: 5 | Q35: 21 | R35: 27 | S35: 28 | Z35: 18 | AA35: 2 | AC35: 8
A36: 28 | B36: 0 | Q36: 20 | R36: 28 | S36: 22 | T36: 3 | Z36: 16 | AO36: 3
A37: 29 | B37: 3 | E37: 1 | N37: 2 | Q37: 31 | R37: 29 | S37: 43 | T37: 8 | Z37: 24 | AA37: 2 | AC37: 4 | AO37: 5
A38: 30 | B38: 2 | E38: 1 | N38: 1 | Q38: 21 | R38: 30 | S38: 21 | T38: 2 | Z38: 13 | AO38: 6
B39: 0 | S39: 0
A40: всего за месяц | B40: 254 | C40: 0 | D40: 114 | E40: 38 | F40: 17 | G40: 32 | H40: 13 | I40: 0 | J40: 0 | K40: 0 | L40: 0 | M40: 8 | N40: 31 | O40: 1 | P40: 0 | Q40: 613 | R40: всего за месяц | S40: =SUM(T40:AO40) -> 541 | T40: 76 | U40: 0 | V40: 0 | W40: 0 | X40: 0 | Y40: 0 | Z40: 383 | AA40: 10 | AB40: 0 | AC40: 38 | AD40: 0 | AE40: 0 | AF40: 0 | AG40: 0 | AH40: 0 | AI40: 0 | AJ40: 1 | AK40: 0 | AL40: 0 | AM40: 0 | AN40: 0 | AO40: 33
A41: итого с начала года | B41: =B40+B8 -> 254 | C41: 0 | D41: 114 | E41: 38 | F41: 17 | G41: 32 | H41: 13 | I41: 0 | J41: 0 | K41: 0 | L41: 0 | M41: 8 | N41: 31 | O41: 1 | P41: 0 | Q41: 613 | R41: итого с начала года | S41: =S40+S8 -> 541 | T41: 76 | U41: 0 | V41: 0 | W41: 0 | X41: 0 | Y41: 0 | Z41: 383 | AA41: 10 | AB41: 0 | AC41: 38 | AD41: 0 | AE41: 0 | AF41: 0 | AG41: 0 | AH41: 0 | AI41: 0 | AJ41: 1 | AK41: 0 | AL41: 0 | AM41: 0 | AN41: 0 | AO41: 33

Sheet октябрь
A1: Часть 1. Учет состава читателей и посещаемости за сентябрь месяц 200___ г. | R1: Часть 2 Учет выдачи книг, брошюр, журналов за сентябрь 20__ г.
A3: число рабочих дней_______________
A4: числа месяца | B4: читателей всего | C4: в том числе учащихся классов | N4: отдельные группы читателей | Q4: число посещений | R4: числа месяца | S4: всего выдано | T4: Распределение книг, брошюр и журналов по содержанию | AN4: электронные издания | AO4: Прочие
C5: 1 класс | D5: 2 класс | E5: 3 класс | F5: 4 класс | G5: 5 класс | H5: 6 класс | I5: 7 класс | J5: 8 класс | K5: 9 класс | L5: 10 класс | M5: 11 класс | N5: учителя | O5: вспомог. | P5: прочие | T5: общественно-политическая литература | U5: естествознание, математика | V5: техника | W5: языкознание | X5: литературоведение | Y5: искусство и спорт | Z5: художественная литература | AA5: справочная | AB5: методическая | AC5: учебная | AD5: на татарском языке
AD6: общественно-политическая литература | AE6: естествознание, математика | AF6: техника | AG6: языкознание | AH6: литературоведение | AI6: искусство и спорт | AJ6: художественная литература | AK6: справочная | AL6: методическая | AM6: учебная
A7: 1 | B7: 2 | C7: 3 | D7: 4 | E7: 5 | F7: 6 | G7: 7 | H7: 8 | I7: 9 | J7: 10 | K7: 11 | L7: 12 | M7: 13 | N7: 14 | O7: 15 | P7: 16 | Q7: 17 | R7: 1 | S7: 2 | T7: 3 | U7: 4 | V7: 5 | W7: 6 | X7: 7 | Y7: 8 | Z7: 9 | AA7: 10 | AB7: 11 | AC7: 12 | AD7: 13 | AE7: 14 | AF7: 15 | AG7: 16 | AH7: 17 | AI7: 18 | AJ7: 19 | AK7: 20 | AL7: 21 | AM7: 22 | AN7: 23 | AO7: 24
A8: К началу месяца | B8: ='сентябрь '!B41 -> 254 | C8: ='сентябрь '!C41 -> 0 | D8: 114 | E8: 38 | F8: 17 | G8: 32 | H8: 13 | I8: ='сентябрь '!I41 -> 0 | J8: ='сентябрь '!J41 -> 0 | K8: ='сентябрь '!K41 -> 0 | L8: ='сентябрь '!L41 -> 0 | M8: 8 | N8: 31 | O8: 1 | P8: ='сентябрь '!P41 -> 0 | Q8: 613 | R8: к началу месяца | S8: ='сентябрь '!S41 -> 541 | T8: 76 | U8: ='сентябрь '!U41 -> 0 | V8: ='сентябрь '!V41 -> 0 | W8: ='сентябрь '!W41 -> 0 | X8: ='сентябрь '!X41 -> 0 | Y8: ='сентябрь '!Y41 -> 0 | Z8: 383 | AA8: 10 | AB8: ='сентябрь '!AB41 -> 0 | AC8: 38 | AD8: ='сентябрь '!AD41 -> 0 | AE8: ='сентябрь '!AE41 -> 0 | AF8: ='сентябрь '!AF41 -> 0 | AG8: ='сентябрь '!AG41 -> 0 | AH8: ='сентябрь '!AH41 -> 0 | AI8: ='сентябрь '!AI41 -> 0 | AJ8: 1 | AK8: ='сентябрь '!AK41 -> 0 | AL8: ='сентябрь '!AL41 -> 0 | AM8: ='сентябрь '!AM41 -> 0 | AN8: ='сентябрь '!AN41 -> 0 | AO8: 33
A9: 1 | B9: =SUM(C9:P9) -> 12 | E9: 12 | Q9: 36 | R9: 1 | S9: =SUM(T9:AO9) -> 38 | T9: 6 | V9: 4 | Z9: 23 | AA9: 1 | AO9: 4
A10: 2 | B10: 0 | Q10: 18 | R10: 2 | S10: 14 | Z10: 13 | AC10: 1
A11: 3 | B11: 0 | R11: 3 | S11: 0
A12: 4 | B12: 8 | E12: 7 | N12: 1 | Q12: 36 | R12: 4 | S12: 29 | T12: 4 | Z12: 24 | AA12: 1
A13: 5 | B13: 0 | Q13: 31 | R13: 5 | S13: 28 | Z13: 28
A14: 6 | B14: 8 | G14: 6 | N14: 2 | Q14: 38 | R14: 6 | S14: 34 | Z14: 32 | AC14: 2
A15: 7 | B15: 0 | Q15: 30 | R15: 7 | S15: 30 | T15: 2 | V15: 1 | Z15: 26 | AA15: 1
A16: 8 | B16: 7 | I16: 6 | N16: 1 | Q16: 39 | R16: 8 | S16: 36 | Z16: 34 | AC16: 2
A17: 9 | B17: 0 | Q17: 18 | R17: 9 | S17: 13 | Z17: 13
A18: 10 | B18: 0 | R18: 10 | S18: 0
A19: 11 | B19: 0 | Q19: 37 | R19: 11 | S19: 37 | T19: 8 | Z19: 29
A20: 12 | B20: 11 | G20: 9 | N20: 1 | O20: 1 | Q20: 41 | R20: 12 | S20: 35 | T20: 2 | Z20: 31 | AA20: 1 | AC20: 1
A21: 13 | B21: 1 | N21: 1 | Q21: 31 | R21: 13 | S21: 35 | T21: 6 | Z21: 28 | AA21: 1
A22: 14 | B22: 0 | Q22: 36 | R22: 14 | S22: 25 | Z22: 21 | AO22: 4
A23: 15 | B23: 1 | N23: 1 | Q23: 29 | R23: 15 | S23: 35 | T23: 3 | Z23: 32
A24: 16 | B24: 0 | Q24: 12 | R24: 16 | S24: 11 | Z24: 11
A25: 17 | B25: 0 | R25: 17 | S25: 0
A26: 18 | B26: 0 | Q26: 37 | R26: 18 | S26: 44 | T26: 6 | V26: 1 | Z26: 32 | AA26: 4 | AC26: 1
A27: 19 | B27: 19 | G27: 18 | N27: 1 | Q27: 41 | R27: 19 | S27: 46 | T27: 4 | Z27: 36 | AA27: 1 | AO27: 5
A28: 20 | B28: 0 | Q28: 27 | R28: 20 | S28: 19 | T28: 3 | V28: 1 | Z28: 12 | AO28: 3
A29: 21 | B29: 0 | Q29: 27 | R29: 21 | S29: 23 | Z29: 19 | AO29: 4
A30: 22 | B30: 11 | H30: 11 | Q30: 31 | R30: 22 | S30: 36 | T30: 2 | Z30: 34
A31: 23 | B31: 0 | Q31: 11 | R31: 23 | S31: 9 | Z31: 9
A32: 24 | B32: 0 | R32: 24 | S32: 0
A33: 25 | B33: 13 | K33: 13 | Q33: 41 | R33: 25 | S33: 49 | T33: 4 | Z33: 36 | AA33: 2 | AC33: 2 | AO33: 5
A34: 26 | B34: 9 | K34: 9 | Q34: 31 | R34: 26 | S34: 28 | Z34: 26 | AO34: 2
A35: 27 | B35: 0 | Q35: 38 | R35: 27 | S35: 36 | T35: 1 | Z35: 31 | AO35: 4
A36: 28 | B36: 0 | Q36: 45 | R36: 28 | S36: 52 | Z36: 52
A37: 29 | B37: 0 | Q37: 12 | R37: 29 | S37: 28 | T37: 6 | Z37: 19 | AO37: 3
A38: 30 | B38: 0 | R38: 30 | S38: 0
A39: 31 | B39: 0 | R39: 31 | S39: 0
A40: всего за месяц | B40: 100 | C40: 0 | D40: 0 | E40: 19 | F40: 0 | G40: 33 | H40: 11 | I40: 6 | J40: 0 | K40: 22 | L40: 0 | M40: 0 | N40: 8 | O40: 1 | P40: 0 | Q40: 773 | R40: всего за месяц | S40: =SUM(T40:AO40) -> 770 | T40: 57 | U40: 0 | V40: 7 | W40: 0 | X40: 0 | Y40: 0 | Z40: 651 | AA40: 12 | AB40: 0 | AC40: 9 | AD40: 0 | AE40: 0 | AF40: 0 | AG40: 0 | AH40: 0 | AI40: 0 | AJ40: 0 | AK40: 0 | AL40: 0 | AM40: 0 | AN40: 0 | AO40: 34
A41: итого с начала года | B41: =B40+B8 -> 354 | C41: 0 | D41: 114 | E41: 57 | F41: 17 | G41: 65 | H41: 24 | I41: 6 | J41: 0 | K41: 22 | L41: 0 | M41: 8 | N41: 39 | O41: 2 | P41: 0 | Q41: 1386 | R41: итого с начала года | S41: =S40+S8 -> 1311 | T41: 133 | U41: 0 | V41: 7 | W41: 0 | X41: 0 | Y41: 0 | Z41: 1034 | AA41: 22 | AB41: 0 | AC41: 47 | AD41: 0 | AE41: 0 | AF41: 0 | AG41: 0 | AH41: 0 | AI41: 0 | AJ41: 1 | AK41: 0 | AL41: 0 | AM41: 0 | AN41: 0 | AO41: 67

Sheet ноябрь
A1: Часть 1. Учет состава читателей и посещаемости за сентябрь месяц 200___ г. | R1: Часть 2 Учет выдачи книг, брошюр, журналов за сентябрь 20__ г.
A3: число рабочих дней_______________
A4: числа месяца | B4: читателей всего | C4: в том числе учащихся классов | N4: отдельные группы читателей | Q4: число посещений | R4: числа месяца | S4: всего выдано | T4: Распределение книг, брошюр и журналов по содержанию | AN4: электронные издания | AO4: Прочие
C5: 1 класс | D5: 2 класс | E5: 3 класс | F5: 4 класс | G5: 5 класс | H5: 6 класс | I5: 7 класс | J5: 8 класс | K5: 9 класс | L5: 10 класс | M5: 11 класс | N5: учителя | O5: вспомог. | P5: прочие | T5: общественно-политическая литература | U5: естествознание, математика | V5: техника | W5: языкознание | X5: литературоведение | Y5: искусство и спорт | Z5: художественная литература | AA5: справочная | AB5: методическая | AC5: учебная | AD5: на татарском языке
AD6: общественно-политическая литература | AE6: естествознание, математика | AF6: техника | AG6: языкознание | AH6: литературоведение | AI6: искусство и спорт | AJ6: художественная литература | AK6: справочная | AL6: методическая | AM6: учебная
A7: 1 | B7: 2 | C7: 3 | D7: 4 | E7: 5 | F7: 6 | G7: 7 | H7: 8 | I7: 9 | J7: 10 | K7: 11 | L7: 12 | M7: 13 | N7: 14 | O7: 15 | P7: 16 | Q7: 17 | R7: 1 | S7: 2 | T7: 3 | U7: 4 | V7: 5 | W7: 6 | X7: 7 | Y7: 8 | Z7: 9 | AA7: 10 | AB7: 11 | AC7: 12 | AD7: 13 | AE7: 14 | AF7: 15 | AG7: 16 | AH7: 17 | AI7: 18 | AJ7: 19 | AK7: 20 | AL7: 21 | AM7: 22 | AN7: 23 | AO7: 24
A8: К началу месяца | B8: =октябрь!B41 -> 354 | C8: =октябрь!C41 -> 0 | D8: =октябрь!D41 -> 114 | E8: =октябрь!E41 -> 57 | F8: =октябрь!F41 -> 17 | G8: =октябрь!G41 -> 65 | H8: =октябрь!H41 -> 24 | I8: =октябрь!I41 -> 6 | J8: =октябрь!J41 -> 0 | K8: =октябрь!K41 -> 22 | L8: =октябрь!L41 -> 0 | M8: =октябрь!M41 -> 8 | N8: =октябрь!N41 -> 39 | O8: =октябрь!O41 -> 2 | P8: =октябрь!P41 -> 0 | Q8: =октябрь!Q41 -> 1386 | R8: к началу месяца | S8: =октябрь!S41 -> 1311 | T8: =октябрь!T41 -> 133 | U8: =октябрь!U41 -> 0 | V8: =октябрь!V41 -> 7 | W8: =октябрь!W41 -> 0 | X8: =октябрь!X41 -> 0 | Y8: =октябрь!Y41 -> 0 | Z8: =октябрь!Z41 -> 1034 | AA8: =октябрь!AA41 -> 22 | AB8: =октябрь!AB41 -> 0 | AC8: =октябрь!AC41 -> 47 | AD8: =октябрь!AD41 -> 0 | AE8: =октябрь!AE41 -> 0 | AF8: =октябрь!AF41 -> 0 | AG8: =октябрь!AG41 -> 0 | AH8: =октябрь!AH41 -> 0 | AI8: =октябрь!AI41 -> 0 | AJ8: =октябрь!AJ41 -> 1 | AK8: =октябрь!AK41 -> 0 | AL8: =октябрь!AL41 -> 0 | AM8: =октябрь!AM41 -> 0 | AN8: =октябрь!AN41 -> 0 | AO8: =октябрь!AO41 -> 67
A9: 1 | B9: =SUM(C9:P9) -> 0 | R9: 1 | S9: =SUM(T9:AO9) -> 0
A10: 2 | B10: 0 | R10: 2 | S10: 0
A11: 3 | B11: 0 | R11: 3 | S11: 0
A12: 4 | B12: 0 | R12: 4 | S12: 0
A13: 5 | B13: 0 | Q13: 18 | R13: 5 | S13: 15 | T13: 3 | Z13: 12
A14: 6 | B14: 0 | R14: 6 | S14: 0
A15: 7 | B15: 0 | R15: 7 | S15: 0
A16: 8 | B16: 0 | Q16: 27 | R16: 8 | S16: 28 | T16: 2 | Z16: 22 | AC16: 2 | AO16: 2
A17: 9 | B17: 13 | L17: 6 | M17: 7 | Q17: 36 | R17: 9 | S17: 38 | T17: 4 | Z17: 28 | AA17: 2 | AO17: 4
A18: 10 | B18: 12 | L18: 12 | Q18: 42 | R18: 10 | S18: 48 | T18: 4 | V18: 2 | Z18: 37 | AJ18: 2 | AO18: 3
A19: 11 | B19: 0 | Q19: 21 | R19: 11 | S19: 30 | Z19: 27 | AC19: 1 | AO19: 2
A20: 12 | B20: 0 | Q20: 31 | R20: 12 | S20: 27 | T20: 2 | Z20: 21 | AO20: 4
A21: 13 | B21: 8 | K21: 8 | Q21: 13 | R21: 13 | S21: 12 | Z21: 12
A22: 14 | B22: 0 | R22: 14 | S22: 0
A23: 15 | B23: 0 | Q23: 32 | R23: 15 | S23: 29 | T23: 2 | Z23: 24 | AO23: 3
A24: 16 | B24: 8 | H24: 3 | K24: 5 | Q24: 41 | R24: 16 | S24: 39 | T24: 1 | Z24: 36 | AA24: 1 | AC24: 1
A25: 17 | B25: 9 | H25: 3 | K25: 6 | Q25: 45 | R25: 17 | S25: 33 | T25: 4 | Z25: 24 | AA25: 1 | AO25: 4
A26: 18 | B26: 0 | Q26: 21 | R26: 18 | S26: 16 | Z26: 16
A27: 19 | B27: 0 | Q27: 32 | R27: 19 | S27: 20 | T27: 4 | Z27: 15 | AA27: 1
A28: 20 | B28: 11 | M28: 11 | Q28: 21 | R28: 20 | S28: 14 | Z28: 14
A29: 21 | B29: 0 | R29: 21 | S29: 0
A30: 22 | B30: 0 | Q30: 32 | R30: 22 | S30: 29 | T30: 2 | Z30: 27
A31: 23 | B31: 0 | Q31: 14 | R31: 23 | S31: 25 | T31: 8 | Z31: 16 | AA31: 1
A32: 24 | B32: 0 | Q32: 39 | R32: 24 | S32: 24 | Z32: 24
A33: 25 | B33: 0 | Q33: 27 | R33: 25 | S33: 22 | T33: 4 | Z33: 18
A34: 26 | B34: 9 | J34: 9 | Q34: 36 | R34: 26 | S34: 21 | Z34: 21
A35: 27 | B35: 0 | Q35: 12 | R35: 27 | S35: 12 | Z35: 12
A36: 28 | B36: 0 | R36: 28 | S36: 0
A37: 29 | B37: 33 | C37: 29 | E37: 4 | Q37: 48 | R37: 29 | S37: 41 | T37: 6 | Z37: 35
A38: 30 | B38: 0 | Q38: 27 | R38: 30 | S38: 13 | T38: 1 | Z38: 11 | AA38: 1
B39: 0 | S39: 0
A40: всего за месяц | B40: 103 | C40: 29 | D40: 0 | E40: 4 | F40: 0 | G40: 0 | H40: 6 | I40: 0 | J40: 9 | K40: 19 | L40: 18 | M40: 18 | N40: 0 | O40: 0 | P40: 0 | Q40: 615 | R40: всего за месяц | S40: =SUM(T40:AO40) -> 536 | T40: 47 | U40: 0 | V40: 2 | W40: 0 | X40: 0 | Y40: 0 | Z40: 452 | AA40: 7 | AB40: 0 | AC40: 4 | AD40: 0 | AE40: 0 | AF40: 0 | AG40: 0 | AH40: 0 | AI40: 0 | AJ40: 2 | AK40: 0 | AL40: 0 | AM40: 0 | AN40: 0 | AO40: 22
A41: итого с начала года | B41: =B40+B8 -> 457 | C41: 29 | D41: 114 | E41: 61 | F41: 17 | G41: 65 | H41: 30 | I41: 6 | J41: 9 | K41: 41 | L41: 18 | M41: 26 | N41: 39 | O41: 2 | P41: 0 | Q41: 2001 | R41: итого с начала года | S41: =S40+S8 -> 1847 | T41: 180 | U41: 0 | V41: 9 | W41: 0 | X41: 0 | Y41: 0 | Z41: 1486 | AA41: 29 | AB41: 0 | AC41: 51 | AD41: 0 | AE41: 0 | AF41: 0 | AG41: 0 | AH41: 0 | AI41: 0 | AJ41: 3 | AK41: 0 | AL41: 0 | AM41: 0 | AN41: 0 | AO41: 89

Sheet декабрь
A1: Часть 1. Учет состава читателей и посещаемости за сентябрь месяц 200___ г. | R1: Часть 2 Учет выдачи книг, брошюр, журналов за сентябрь 20__ г.
A3: число рабочих дней_______________
A4: числа месяца | B4: читателей всего | C4: в том числе учащихся классов | N4: отдельные группы читателей | Q4: число посещений | R4: числа месяца | S4: всего выдано | T4: Распределение книг, брошюр и журналов по содержанию | AN4: электронные издания | AO4: Прочие
C5: 1 класс | D5: 2 класс | E5: 3 класс | F5: 4 класс | G5: 5 класс | H5: 6 класс | I5: 7 класс | J5: 8 класс | K5: 9 класс | L5: 10 класс | M5: 11 класс | N5: учителя | O5: вспомог. | P5: прочие | T5: общественно-политическая литература | U5: естествознание, математика | V5: техника | W5: языкознание | X5: литературоведение | Y5: искусство и спорт | Z5: художественная литература | AA5: справочная | AB5: методическая | AC5: учебная | AD5: на татарском языке
AD6: общественно-политическая литература | AE6: естествознание, математика | AF6: техника | AG6: языкознание | AH6: литературоведение | AI6: искусство и спорт | AJ6: художественная литература | AK6: справочная | AL6: методическая | AM6: учебная
A7: 1 | B7: 2 | C7: 3 | D7: 4 | E7: 5 | F7: 6 | G7: 7 | H7: 8 | I7: 9 | J7: 10 | K7: 11 | L7: 12 | M7: 13 | N7: 14 | O7: 15 | P7: 16 | Q7: 17 | R7: 1 | S7: 2 | T7: 3 | U7: 4 | V7: 5 | W7: 6 | X7: 7 | Y7: 8 | Z7: 9 | AA7: 10 | AB7: 11 | AC7: 12 | AD7: 13 | AE7: 14 | AF7: 15 | AG7: 16 | AH7: 17 | AI7: 18 | AJ7: 19 | AK7: 20 | AL7: 21 | AM7: 22 | AN7: 23 | AO7: 24
A8: К началу месяца | B8: =ноябрь!B41 -> 457 | C8: 29 | D8: 114 | E8: 61 | F8: 17 | G8: 65 | H8: 30 | I8: 6 | J8: 9 | K8: 41 | L8: 18 | M8: 26 | N8: 39 | O8: 2 | P8: 0 | Q8: 2001 | R8: к началу месяца | S8: =ноябрь!S41 -> 1847 | T8: =ноябрь!T41 -> 180 | U8: =ноябрь!U41 -> 0 | V8: =ноябрь!V41 -> 9 | W8: =ноябрь!W41 -> 0 | X8: =ноябрь!X41 -> 0 | Y8: =ноябрь!Y41 -> 0 | Z8: =ноябрь!Z41 -> 1486 | AA8: =ноябрь!AA41 -> 29 | AB8: =ноябрь!AB41 -> 0 | AC8: =ноябрь!AC41 -> 51 | AD8: =ноябрь!AD41 -> 0 | AE8: =ноябрь!AE41 -> 0 | AF8: =ноябрь!AF41 -> 0 | AG8: =ноябрь!AG41 -> 0 | AH8: =ноябрь!AH41 -> 0 | AI8: =ноябрь!AI41 -> 0 | AJ8: =ноябрь!AJ41 -> 3 | AK8: =ноябрь!AK41 -> 0 | AL8: =ноябрь!AL41 -> 0 | AM8: =ноябрь!AM41 -> 0 | AN8: =ноябрь!AN41 -> 0 | AO8: =ноябрь!AO41 -> 89
A9: 1 | B9: =SUM(C9:P9) -> 0 | Q9: 31 | R9: 1 | S9: =SUM(T9:AO9) -> 16 | T9: 2 | Z9: 14
A10: 2 | B10: 11 | F10: 11 | Q10: 39 | R10: 2 | S10: 26 | Z10: 21 | AA10: 1 | AO10: 4
A11: 3 | B11: 8 | F11: 8 | Q11: 27 | R11: 3 | S11: 24 | T11: 2 | Z11: 18 | AJ11: 2 | AO11: 2
A12: 4 | B12: 0 | Q12: 21 | R12: 4 | S12: 21 | Z12: 21
A13: 5 | B13: 0 | R13: 5 | S13: 0
A14: 6 | B14: 0 | Q14: 44 | R14: 6 | S14: 29 | Z14: 27 | AO14: 2
A15: 7 | B15: 0 | Q15: 21 | R15: 7 | S15: 23 | Z15: 18 | AO15: 5
A16: 8 | B16: 0 | Q16: 30 | R16: 8 | S16: 35 | T16: 4 | Z16: 25 | AA16: 1 | AO16: 5
A17: 9 | B17: 0 | Q17: 37 | R17: 9 | S17: 31 | T17: 2 | Z17: 28 | AO17: 1
A18: 10 | B18: 31 | C18: 31 | Q18: 47 | R18: 10 | S18: 36 | Z18: 36
A19: 11 | B19: 0 | Q19: 9 | R19: 11 | S19: 9 | Z19: 9
A20: 12 | B20: 0 | R20: 12 | S20: 0
A21: 13 | B21: 0 | Q21: 37 | R21: 13 | S21: 32 | T21: 4 | Z21: 28
A22: 14 | B22: 0 | Q22: 41 | R22: 14 | S22: 38 | Z22: 32 | AA22: 2 | AJ22: 1 | AO22: 3
A23: 15 | B23: 29 | C23: 29 | Q23: 43 | R23: 15 | S23: 38 | T23: 4 | Z23: 32 | AO23: 2
A24: 16 | B24: 0 | Q24: 31 | R24: 16 | S24: 28 | Z24: 24 | AO24: 4
A25: 17 | B25: 0 | Q25: 20 | R25: 17 | S25: 11 | T25: 1 | Z25: 10
A26: 18 | B26: 0 | Q26: 8 | R26: 18 | S26: 6 | Z26: 6
A27: 19 | B27: 0 | R27: 19 | S27: 0
A28: 20 | B28: 2 | O28: 2 | Q28: 21 | R28: 20 | S28: 18 | T28: 2 | Z28: 16
A29: 21 | B29: 1 | N29: 1 | Q29: 31 | R29: 21 | S29: 27 | Z29: 27
A30: 22 | B30: 0 | Q30: 40 | R30: 22 | S30: 31 | Z30: 31
A31: 23 | B31: 1 | N31: 1 | Q31: 21 | R31: 23 | S31: 49 | T31: 8 | Z31: 41
A32: 24 | B32: 11 | E32: 4 | F32: 7 | Q32: 29 | R32: 24 | S32: 43 | T32: 2 | Z32: 41
A33: 25 | B33: 0 | R33: 25 | S33: 0
A34: 26 | B34: 0 | R34: 26 | S34: 0
A35: 27 | B35: 0 | R35: 27 | S35: 0
A36: 28 | B36: 0 | R36: 28 | S36: 0
A37: 29 | B37: 0 | R37: 29 | S37: 0
A38: 30 | B38: 0 | R38: 30 | S38: 0
A39: 31 | B39: 0 | R39: 31 | S39: 0
A40: всего за месяц | B40: 94 | C40: 60 | D40: 0 | E40: 4 | F40: 26 | G40: 0 | H40: 0 | I40: 0 | J40: 0 | K40: 0 | L40: 0 | M40: 0 | N40: 2 | O40: 2 | P40: 0 | R40: всего за месяц | S40: =SUM(T40:AO40) -> 571 | T40: 31 | U40: 0 | V40: 0 | W40: 0 | X40: 0 | Y40: 0 | Z40: 505 | AA40: 4 | AB40: 0 | AC40: 0 | AD40: 0 | AE40: 0 | AF40: 0 | AG40: 0 | AH40: 0 | AI40: 0 | AJ40: 3 | AK40: 0 | AL40: 0 | AM40: 0 | AN40: 0 | AO40: =SUM(AO9:AO39) -> 28
A41: итого с начала года | B41: =B40+B8 -> 551 | C41: 89 | D41: 114 | E41: 65 | F41: 43 | G41: 65 | H41: 30 | I41: 6 | J41: 9 | K41: 41 | L41: 18 | M41: 26 | N41: 41 | O41: 4 | P41: 0 | R41: итого с начала года | S41: =S40+S8 -> 2418 | T41: 211 | U41: 0 | V41: 9 | W41: 0 | X41: 0 | Y41: 0 | Z41: 1991 | AA41: 33 | AB41: 0 | AC41: 51 | AD41: 0 | AE41: 0 | AF41: 0 | AG41: 0 | AH41: 0 | AI41: 0 | AJ41: 6 | AK41: 0 | AL41: 0 | AM41: 0 | AN41: 0 | AO41: =AO40+AO8 -> 117

Sheet январь
A1: Часть 1. Учет состава читателей и посещаемости за январь месяц 2022г. | R1: Часть 2 Учет выдачи книг, брошюр, журналов за январь 2022 г.
A3: число рабочих дней_______________
A4: числа месяца | B4: читателей всего | C4: в том числе учащихся классов | N4: отдельные группы читателей | Q4: число посещений | R4: числа месяца | S4: всего выдано | T4: Распределение книг, брошюр и журналов по содержанию | AN4: электронные издания | AO4: Прочие
C5: 1 класс | D5: 2 класс | E5: 3 класс | F5: 4 класс | G5: 5 класс | H5: 6 класс | I5: 7 класс | J5: 8 класс | K5: 9 класс | L5: 10 класс | M5: 11 класс | N5: учителя | O5: вспомог. | P5: прочие | T5: общественно-политическая литература | U5: естествознание, математика | V5: техника | W5: языкознание | X5: литературоведение | Y5: искусство и спорт | Z5: художественная литература | AA5: справочная | AB5: методическая | AC5: учебная | AD5: на татарском языке
AD6: общественно-политическая литература | AE6: естествознание, математика | AF6: техника | AG6: языкознание | AH6: литературоведение | AI6: искусство и спорт | AJ6: художественная литература | AK6: справочная | AL6: методическая | AM6: учебная
A7: 1 | B7: 2 | C7: 3 | D7: 4 | E7: 5 | F7: 6 | G7: 7 | H7: 8 | I7: 9 | J7: 10 | K7: 11 | L7: 12 | M7: 13 | N7: 14 | O7: 15 | P7: 16 | Q7: 17 | R7: 1 | S7: 2 | T7: 3 | U7: 4 | V7: 5 | W7: 6 | X7: 7 | Y7: 8 | Z7: 9 | AA7: 10 | AB7: 11 | AC7: 12 | AD7: 13 | AE7: 14 | AF7: 15 | AG7: 16 | AH7: 17 | AI7: 18 | AJ7: 19 | AK7: 20 | AL7: 21 | AM7: 22 | AN7: 23 | AO7: 24
A8: К началу месяца | B8: =декабрь!B41 -> 551 | C8: =декабрь!C41 -> 89 | D8: =декабрь!D41 -> 114 | E8: =декабрь!E41 -> 65 | F8: =декабрь!F41 -> 43 | G8: =декабрь!G41 -> 65 | H8: =декабрь!H41 -> 30 | I8: =декабрь!I41 -> 6 | J8: =декабрь!J41 -> 9 | K8: =декабрь!K41 -> 41 | L8: =декабрь!L41 -> 18 | M8: =декабрь!M41 -> 26 | N8: =декабрь!N41 -> 41 | O8: =декабрь!O41 -> 4 | P8: =декабрь!P41 -> 0 | Q8: =декабрь!Q41 -> 0 | R8: к началу месяца | S8: =декабрь!S41 -> 2418 | T8: =декабрь!T41 -> 211 | U8: =декабрь!U41 -> 0 | V8: =декабрь!V41 -> 9 | W8: =декабрь!W41 -> 0 | X8: =декабрь!X41 -> 0 | Y8: =декабрь!Y41 -> 0 | Z8: =декабрь!Z41 -> 1991 | AA8: =декабрь!AA41 -> 33 | AB8: =декабрь!AB41 -> 0 | AC8: =декабрь!AC41 -> 51 | AD8: =декабрь!AD41 -> 0 | AE8: =декабрь!AE41 -> 0 | AF8: =декабрь!AF41 -> 0 | AG8: =декабрь!AG41 -> 0 | AH8: =декабрь!AH41 -> 0 | AI8: =декабрь!AI41 -> 0 | AJ8: =декабрь!AJ41 -> 6 | AK8: =декабрь!AK41 -> 0 | AL8: =декабрь!AL41 -> 0 | AM8: =декабрь!AM41 -> 0 | AN8: =декабрь!AN41 -> 0 | AO8: =декабрь!AO41 -> 117
A9: 1 | B9: =SUM(C9:P9) -> 0 | R9: 1 | S9: =SUM(T9:AO9) -> 0
A10: 2 | B10: 0 | R10: 2 | S10: 0
A11: 3 | B11: 0 | R11: 3 | S11: 0
A12: 4 | B12: 0 | R12: 4 | S12: 0
A13: 5 | B13: 0 | R13: 5 | S13: 0
A14: 6 | B14: 0 | R14: 6 | S14: 0
A15: 7 | B15: 0 | R15: 7 | S15: 0
A16: 8 | B16: 0 | R16: 8 | S16: 0
A17: 9 | B17: 0 | R17: 9 | S17: 0
A18: 10 | B18: 0 | R18: 10 | S18: 0
A19: 11 | B19: 0 | R19: 11 | S19: 0
A20: 12 | B20: 0 | Q20: 19 | R20: 12 | S20: 18 | T20: 2 | Z20: 14 | AO20: 2
A21: 13 | B21: 6 | E21: 6 | Q21: 21 | R21: 13 | S21: 19 | T21: 2 | Z21: 12 | AJ21: 1 | AO21: 4
A22: 14 | B22: 0 | Q22: 181 | R22: 1414 | Z22: 16
A23: 15 | B23: 8 | K23: 8 | Q23: 12 | R23: 15 | S23: 8 | Z23: 8
A24: 16 | B24: 0 | R24: 16 | S24: 0
A25: 17 | B25: 5 | K25: 5 | Q25: 22 | R25: 17 | S25: 22 | Z25: 20 | AO25: 2
A26: 18 | B26: 4 | M26: 4 | Q26: 32 | R26: 18 | S26: 29 | T26: 2 | Z26: 24 | AO26: 3
A27: 19 | B27: 7 | M27: 7 | Q27: 34 | R27: 19 | S27: 29 | T27: 1 | Z27: 28
A28: 20 | B28: 0 | Q28: 37 | R28: 20 | S28: 31 | Z28: 30 | AJ28: 1
A29: 21 | B29: 6 | E29: 5 | G29: 1 | Q29: 41 | R29: 21 | S29: 27 | T29: 1 | Z29: 23 | AO29: 3
A30: 22 | B30: 4 | E30: 4 | Q30: 28 | R30: 22 | S30: 14 | T30: 2 | Z30: 12
A31: 23 | B31: 0 | R31: 23 | S31: 0
A32: 24 | B32: 0 | Q32: 31 | R32: 24 | S32: 25 | T32: 2 | Z32: 21 | AO32: 2
A33: 25 | B33: 13 | H33: 13 | Q33: 42 | R33: 25 | S33: 36 | T33: 1 | Z33: 31 | AJ33: 2 | AO33: 2
A34: 26 | B34: 4 | H34: 4 | Q34: 48 | R34: 26 | S34: 40 | T34: 1 | Z34: 36 | AO34: 3
A35: 27 | B35: 6 | I35: 6 | Q35: 52 | R35: 27 | S35: 45 | T35: 1 | Z35: 41 | AO35: 3
A36: 28 | B36: 0 | Q36: 18 | R36: 28 | S36: 16 | Z36: 16
A37: 29 | B37: 0 | R37: 29 | S37: 0
A38: 30 | B38: 0 | R38: 30 | S38: 0
A39: 31 | B39: 0 | Q39: 29 | R39: 31 | S39: 23 | T39: 2 | Z39: 18 | AO39: 3
A40: всего за месяц | B40: 63 | C40: =SUM(C9:C39) -> 0 | D40: 0 | E40: 15 | F40: 0 | G40: 1 | H40: 17 | I40: 6 | J40: 0 | K40: 13 | L40: 0 | M40: 11 | N40: 0 | O40: 0 | P40: 0 | Q40: 647 | R40: всего за месяц | S40: =SUM(T40:AO40) -> 398 | T40: =SUM(T9:T39) -> 17 | U40: 0 | V40: 0 | W40: 0 | X40: 0 | Y40: 0 | Z40: 350 | AA40: 0 | AB40: 0 | AC40: 0 | AD40: 0 | AE40: 0 | AF40: 0 | AG40: 0 | AH40: 0 | AI40: 0 | AJ40: 4 | AK40: 0 | AL40: 0 | AM40: 0 | AN40: 0 | AO40: 27
A41: итого с начала года | B41: =B40+B8 -> 614 | C41: =C40+C8 -> 89 | D41: 114 | E41: 80 | F41: 43 | G41: 66 | H41: 47 | I41: 12 | J41: 9 | K41: 54 | L41: 18 | M41: 37 | N41: 41 | O41: 4 | P41: 0 | Q41: 647 | R41: итого с начала года | S41: =S40+S8 -> 2816 | T41: =T40+T8 -> 228 | U41: 0 | V41: 9 | W41: 0 | X41: 0 | Y41: 0 | Z41: 2341 | AA41: 33 | AB41: 0 | AC41: 51 | AD41: 0 | AE41: 0 | AF41: 0 | AG41: 0 | AH41: 0 | AI41: 0 | AJ41: 10 | AK41: 0 | AL41: 0 | AM41: 0 | AN41: 0 | AO41: 144

Sheet февраль
A1: Часть 1. Учет состава читателей и посещаемости за сентябрь месяц 200___ г. | R1: Часть 2 Учет выдачи книг, брошюр, журналов за сентябрь 20__ г.
A3: число рабочих дней_______________
A4: числа месяца | B4: читателей всего | C4: в том числе учащихся классов | N4: отдельные группы читателей | Q4: число посещений | R4: числа месяца | S4: всего выдано | T4: Распределение книг, брошюр и журналов по содержанию | AN4: электронные издания | AO4: Прочие
C5: 1 класс | D5: 2 класс | E5: 3 класс | F5: 4 класс | G5: 5 класс | H5: 6 класс | I5: 7 класс | J5: 8 класс | K5: 9 класс | L5: 10 класс | M5: 11 класс | N5: учителя | O5: вспомог. | P5: прочие | T5: общественно-политическая литература | U5: естествознание, математика | V5: техника | W5: языкознание | X5: литературоведение | Y5: искусство и спорт | Z5: художественная литература | AA5: справочная | AB5: методическая | AC5: учебная | AD5: на татарском языке
AD6: общественно-политическая литература | AE6: естествознание, математика | AF6: техника | AG6: языкознание | AH6: литературоведение | AI6: искусство и спорт | AJ6: художественная литература | AK6: справочная | AL6: методическая | AM6: учебная
A7: 1 | B7: 2 | C7: 3 | D7: 4 | E7: 5 | F7: 6 | G7: 7 | H7: 8 | I7: 9 | J7: 10 | K7: 11 | L7: 12 | M7: 13 | N7: 14 | O7: 15 | P7: 16 | Q7: 17 | R7: 1 | S7: 2 | T7: 3 | U7: 4 | V7: 5 | W7: 6 | X7: 7 | Y7: 8 | Z7: 9 | AA7: 10 | AB7: 11 | AC7: 12 | AD7: 13 | AE7: 14 | AF7: 15 | AG7: 16 | AH7: 17 | AI7: 18 | AJ7: 19 | AK7: 20 | AL7: 21 | AM7: 22 | AN7: 23 | AO7: 24
A8: К началу месяца | B8: =январь!B41 -> 614 | C8: =январь!C41 -> 89 | D8: =январь!D41 -> 114 | E8: =январь!E41 -> 80 | F8: =январь!F41 -> 43 | G8: =январь!G41 -> 66 | H8: =январь!H41 -> 47 | I8: =январь!I41 -> 12 | J8: =январь!J41 -> 9 | K8: =январь!K41 -> 54 | L8: =январь!L41 -> 18 | M8: =январь!M41 -> 37 | N8: =январь!N41 -> 41 | O8: =январь!O41 -> 4 | P8: =январь!P41 -> 0 | Q8: =январь!Q41 -> 647 | R8: к началу месяца | S8: =январь!S41 -> 2816 | T8: =январь!T41 -> 228 | U8: =январь!U41 -> 0 | V8: =январь!V41 -> 9 | W8: =январь!W41 -> 0 | X8: =январь!X41 -> 0 | Y8: =январь!Y41 -> 0 | Z8: =январь!Z41 -> 2341 | AA8: =январь!AA41 -> 33 | AB8: =январь!AB41 -> 0 | AC8: =январь!AC41 -> 51 | AD8: =январь!AD41 -> 0 | AE8: =январь!AE41 -> 0 | AF8: =январь!AF41 -> 0 | AG8: =январь!AG41 -> 0 | AH8: =январь!AH41 -> 0 | AI8: =январь!AI41 -> 0 | AJ8: =январь!AJ41 -> 10 | AK8: =январь!AK41 -> 0 | AL8: =январь!AL41 -> 0 | AM8: =январь!AM41 -> 0 | AN8: =январь!AN41 -> 0 | AO8: =январь!AO41 -> 144
A9: 1 | B9: =SUM(C9:P9) -> 0 | R9: 1 | S9: =SUM(T9:AO9) -> 0
A10: 2 | B10: 0 | Q10: 34 | R10: 2 | S10: 29 | T10: 1 | Z10: 28
A11: 3 | B11: 3 | J11: 3 | Q11: 29 | R11: 3 | S11: 24 | Z11: 21 | AJ11: 1 | AO11: 2
A12: 4 | B12: 2 | J12: 2 | Q12: 31 | R12: 4 | S12: 25 | T12: 1 | Z12: 24
A13: 5 | B13: 0 | R13: 5 | S13: 0
A14: 6 | B14: 0 | R14: 6 | S14: 0
A15: 7 | B15: 0 | Q15: 38 | R15: 7 | S15: 24 | T15: 1 | Z15: 19 | AA15: 1 | AC15: 1 | AO15: 2
A16: 8 | B16: 0 | Q16: 28 | R16: 8 | S16: 24 | T16: 2 | V16: 1 | Z16: 18 | AO16: 3
A17: 9 | B17: 0 | Q17: 42 | R17: 9 | S17: 39 | T17: 1 | Z17: 35 | AJ17: 1 | AO17: 2
A18: 10 | B18: 0 | Q18: 59 | R18: 10 | S18: 54 | T18: 2 | V18: 1 | Z18: 46 | AJ18: 2 | AO18: 3
A19: 11 | B19: 1 | L19: 1 | Q19: 41 | R19: 11 | S19: 30 | Z19: 29 | AO19: 1
A20: 12 | B20: 0 | R20: 12 | S20: 0
A21: 13 | B21: 0 | R21: 13 | S21: 0
A22: 14 | B22: 1 | H22: 1 | Q22: 39 | R22: 14 | S22: 33 | Z22: 24 | AC22: 3 | AO22: 6
A23: 15 | B23: 1 | E23: 1 | Q23: 68 | R23: 15 | S23: 51 | T23: 2 | Z23: 35 | AC23: 2 | AJ23: 1 | AO23: 11
A24: 16 | B24: 1 | I24: 1 | Q24: 31 | R24: 16 | S24: 23 | Z24: 23
A25: 17 | B25: 1 | I25: 1 | Q25: 41 | R25: 17 | S25: 38 | Z25: 32 | AO25: 6
A26: 18 | B26: 4 | F26: 1 | K26: 3 | Q26: 45 | R26: 18 | S26: 39 | T26: 1 | Z26: 33 | AC26: 1 | AO26: 4
A27: 19 | B27: 1 | L27: 1 | Q27: 18 | R27: 19 | S27: 10 | Z27: 8 | AO27: 2
A28: 20 | B28: 0 | R28: 20 | S28: 0
A29: 21 | B29: 1 | H29: 1 | Q29: 47 | R29: 21 | S29: 40 | T29: 1 | Z29: 33 | AC29: 2 | AO29: 4
A30: 22 | B30: 0 | Q30: 27 | R30: 22 | S30: 22 | T30: 1 | Z30: 19 | AO30: 2
A31: 23 | B31: 0 | R31: 23 | S31: 0
A32: 24 | B32: 0 | R32: 24 | S32: 0
A33: 25 | B33: 0 | R33: 25 | S33: 0
A34: 26 | B34: 0 | R34: 26 | S34: 0
A35: 27 | B35: 0 | R35: 27 | S35: 0
A36: 28 | B36: 0 | R36: 28 | S36: 0
B37: 0 | S37: 0
B38: 0 | S38: 0
B39: 0 | S39: 0
A40: всего за месяц | B40: 16 | C40: =SUM(C9:C39) -> 0 | D40: 0 | E40: 1 | F40: 1 | G40: 0 | H40: 2 | I40: 2 | J40: 5 | K40: 3 | L40: 2 | M40: 0 | N40: 0 | O40: 0 | P40: 0 | Q40: 618 | R40: всего за месяц | S40: =SUM(T40:AO40) -> 505 | T40: =SUM(T9:T39) -> 13 | U40: 0 | V40: 2 | W40: 0 | X40: 0 | Y40: 0 | Z40: 427 | AA40: 1 | AB40: 0 | AC40: 9 | AD40: 0 | AE40: 0 | AF40: 0 | AG40: 0 | AH40: 0 | AI40: 0 | AJ40: 5 | AK40: 0 | AL40: 0 | AM40: 0 | AN40: 0 | AO40: 48
A41: итого с начала года | B41: =B40+B8 -> 630 | C41: =C40+C8 -> 89 | D41: 114 | E41: 81 | F41: 44 | G41: 66 | H41: 49 | I41: 14 | J41: 14 | K41: 57 | L41: 20 | M41: 37 | N41: 41 | O41: 4 | P41: 0 | Q41: 1265 | R41: итого с начала года | S41: =S40+S8 -> 3321 | T41: =T40+T8 -> 241 | U41: 0 | V41: 11 | W41: 0 | X41: 0 | Y41: 0 | Z41: 2768 | AA41: 34 | AB41: 0 | AC41: 60 | AD41: 0 | AE41: 0 | AF41: 0 | AG41: 0 | AH41: 0 | AI41: 0 | AJ41: 15 | AK41: 0 | AL41: 0 | AM41: 0 | AN41: 0 | AO41: 192

Sheet март
A1: Часть 1. Учет состава читателей и посещаемости за сентябрь месяц 200___ г. | R1: Часть 2 Учет выдачи книг, брошюр, журналов за сентябрь 20__ г.
A3: число рабочих дней_______________
A4: числа месяца | B4: читателей всего | C4: в том числе учащихся классов | N4: отдельные группы читателей | Q4: число посещений | R4: числа месяца | S4: всего выдано | T4: Распределение книг, брошюр и журналов по содержанию | AN4: электронные издания | AO4: Прочие
C5: 1 класс | D5: 2 класс | E5: 3 класс | F5: 4 класс | G5: 5 класс | H5: 6 класс | I5: 7 класс | J5: 8 класс | K5: 9 класс | L5: 10 класс | M5: 11 класс | N5: учителя | O5: вспомог. | P5: прочие | T5: общественно-политическая литература | U5: естествознание, математика | V5: техника | W5: языкознание | X5: литературоведение | Y5: искусство и спорт | Z5: художественная литература | AA5: справочная | AB5: методическая | AC5: учебная | AD5: на татарском языке
AD6: общественно-политическая литература | AE6: естествознание, математика | AF6: техника | AG6: языкознание | AH6: литературоведение | AI6: искусство и спорт | AJ6: художественная литература | AK6: справочная | AL6: методическая | AM6: учебная
A7: 1 | B7: 2 | C7: 3 | D7: 4 | E7: 5 | F7: 6 | G7: 7 | H7: 8 | I7: 9 | J7: 10 | K7: 11 | L7: 12 | M7: 13 | N7: 14 | O7: 15 | P7: 16 | Q7: 17 | R7: 1 | S7: 2 | T7: 3 | U7: 4 | V7: 5 | W7: 6 | X7: 7 | Y7: 8 | Z7: 9 | AA7: 10 | AB7: 11 | AC7: 12 | AD7: 13 | AE7: 14 | AF7: 15 | AG7: 16 | AH7: 17 | AI7: 18 | AJ7: 19 | AK7: 20 | AL7: 21 | AM7: 22 | AN7: 23 | AO7: 24
A8: К началу месяца | B8: =февраль!B41 -> 630 | C8: =февраль!C41 -> 89 | D8: =февраль!D41 -> 114 | E8: =февраль!E41 -> 81 | F8: =февраль!F41 -> 44 | G8: =февраль!G41 -> 66 | H8: =февраль!H41 -> 49 | I8: =февраль!I41 -> 14 | J8: =февраль!J41 -> 14 | K8: =февраль!K41 -> 57 | L8: =февраль!L41 -> 20 | M8: =февраль!M41 -> 37 | N8: =февраль!N41 -> 41 | O8: =февраль!O41 -> 4 | P8: =февраль!P41 -> 0 | Q8: =февраль!Q41 -> 1265 | R8: к началу месяца | S8: =февраль!S41 -> 3321 | T8: =февраль!T41 -> 241 | U8: =февраль!U41 -> 0 | V8: =февраль!V41 -> 11 | W8: =февраль!W41 -> 0 | X8: =февраль!X41 -> 0 | Y8: =февраль!Y41 -> 0 | Z8: =февраль!Z41 -> 2768 | AA8: =февраль!AA41 -> 34 | AB8: =февраль!AB41 -> 0 | AC8: =февраль!AC41 -> 60 | AD8: =февраль!AD41 -> 0 | AE8: =февраль!AE41 -> 0 | AF8: =февраль!AF41 -> 0 | AG8: =февраль!AG41 -> 0 | AH8: =февраль!AH41 -> 0 | AI8: =февраль!AI41 -> 0 | AJ8: =февраль!AJ41 -> 15 | AK8: =февраль!AK41 -> 0 | AL8: =февраль!AL41 -> 0 | AM8: =февраль!AM41 -> 0 | AN8: =февраль!AN41 -> 0 | AO8: =февраль!AO41 -> 192
A9: 1 | B9: =SUM(C9:P9) -> 0 | R9: 1 | S9: =SUM(T9:AO9) -> 0
A10: 2 | B10: 0 | R10: 2 | S10: 0
A11: 3 | B11: 0 | R11: 3 | S11: 0
A12: 4 | B12: 0 | R12: 4 | S12: 0
A13: 5 | B13: 0 | R13: 5 | S13: 0
A14: 6 | B14: 0 | R14: 6 | S14: 0
A15: 7 | B15: 0 | R15: 7 | S15: 0
A16: 8 | B16: 0 | R16: 8 | S16: 0
A17: 9 | B17: 0 | R17: 9 | S17: 0
A18: 10 | B18: 0 | R18: 10 | S18: 0
A19: 11 | B19: 0 | R19: 11 | S19: 0
A20: 12 | B20: 0 | R20: 12 | S20: 0
A21: 13 | B21: 0 | R21: 13 | S21: 0
A22: 14 | B22: 0 | R22: 14 | S22: 0
A23: 15 | B23: 0 | R23: 15 | S23: 0
A24: 16 | B24: 0 | R24: 16 | S24: 0
A25: 17 | B25: 0 | R25: 17 | S25: 0
A26: 18 | B26: 0 | R26: 18 | S26: 0
A27: 19 | B27: 0 | R27: 19 | S27: 0
A28: 20 | B28: 0 | R28: 20 | S28: 0
A29: 21 | B29: 0 | R29: 21 | S29: 0
A30: 22 | B30: 0 | R30: 22 | S30: 0
A31: 23 | B31: 0 | R31: 23 | S31: 0
A32: 24 | B32: 0 | R32: 24 | S32: 0
A33: 25 | B33: 0 | R33: 25 | S33: 0
A34: 26 | B34: 0 | R34: 26 | S34: 0
A35: 27 | B35: 0 | R35: 27 | S35: 0
A36: 28 | B36: 0 | R36: 28 | S36: 0
A37: 29 | B37: 0 | R37: 29 | S37: 0
A38: 30 | B38: 0 | R38: 30 | S38: 0
A39: 31 | B39: 0 | R39: 31 | S39: 0
A40: всего за месяц | B40: 0 | C40: =SUM(C9:C39) -> 0 | D40: 0 | E40: 0 | F40: 0 | G40: 0 | H40: 0 | I40: 0 | J40: 0 | K40: 0 | L40: 0 | M40: 0 | N40: 0 | O40: 0 | P40: 0 | Q40: 0 | R40: всего за месяц | S40: =SUM(T40:AO40) -> 0 | T40: =SUM(T9:T39) -> 0 | U40: 0 | V40: 0 | W40: 0 | X40: 0 | Y40: 0 | Z40: 0 | AA40: 0 | AB40: 0 | AC40: 0 | AD40: 0 | AE40: 0 | AF40: 0 | AG40: 0 | AH40: 0 | AI40: 0 | AJ40: 0 | AK40: 0 | AL40: 0 | AM40: 0 | AN40: 0 | AO40: 0
A41: итого с начала года | B41: =B40+B8 -> 630 | C41: =C40+C8 -> 89 | D41: 114 | E41: 81 | F41: 44 | G41: 66 | H41: 49 | I41: 14 | J41: 14 | K41: 57 | L41: 20 | M41: 37 | N41: 41 | O41: 4 | P41: 0 | Q41: 1265 | R41: итого с начала года | S41: =S40+S8 -> 3321 | T41: =T40+T8 -> 241 | U41: 0 | V41: 11 | W41: 0 | X41: 0 | Y41: 0 | Z41: 2768 | AA41: 34 | AB41: 0 | AC41: 60 | AD41: 0 | AE41: 0 | AF41: 0 | AG41: 0 | AH41: 0 | AI41: 0 | AJ41: 15 | AK41: 0 | AL41: 0 | AM41: 0 | AN41: 0 | AO41: 192

Sheet апрель
A1: Часть 1. Учет состава читателей и посещаемости за сентябрь месяц 200___ г. | R1: Часть 2 Учет выдачи книг, брошюр, журналов за сентябрь 20__ г.
A3: число рабочих дней_______________
A4: числа месяца | B4: читателей всего | C4: в том числе учащихся классов | N4: отдельные группы читателей | Q4: число посещений | R4: числа месяца | S4: всего выдано | T4: Распределение книг, брошюр и журналов по содержанию | AN4: электронные издания | AO4: Прочие
C5: 1 класс | D5: 2 класс | E5: 3 класс | F5: 4 класс | G5: 5 класс | H5: 6 класс | I5: 7 класс | J5: 8 класс | K5: 9 класс | L5: 10 класс | M5: 11 класс | N5: учителя | O5: вспомог. | P5: прочие | T5: общественно-политическая литература | U5: естествознание, математика | V5: техника | W5: языкознание | X5: литературоведение | Y5: искусство и спорт | Z5: художественная литература | AA5: справочная | AB5: методическая | AC5: учебная | AD5: на татарском языке
AD6: общественно-политическая литература | AE6: естествознание, математика | AF6: техника | AG6: языкознание | AH6: литературоведение | AI6: искусство и спорт | AJ6: художественная литература | AK6: справочная | AL6: методическая | AM6: учебная
A7: 1 | B7: 2 | C7: 3 | D7: 4 | E7: 5 | F7: 6 | G7: 7 | H7: 8 | I7: 9 | J7: 10 | K7: 11 | L7: 12 | M7: 13 | N7: 14 | O7: 15 | P7: 16 | Q7: 17 | R7: 1 | S7: 2 | T7: 3 | U7: 4 | V7: 5 | W7: 6 | X7: 7 | Y7: 8 | Z7: 9 | AA7: 10 | AB7: 11 | AC7: 12 | AD7: 13 | AE7: 14 | AF7: 15 | AG7: 16 | AH7: 17 | AI7: 18 | AJ7: 19 | AK7: 20 | AL7: 21 | AM7: 22 | AN7: 23 | AO7: 24
A8: К началу месяца | B8: =март!B41 -> 630 | C8: =март!C41 -> 89 | D8: =март!D41 -> 114 | E8: =март!E41 -> 81 | F8: =март!F41 -> 44 | G8: =март!G41 -> 66 | H8: =март!H41 -> 49 | I8: =март!I41 -> 14 | J8: =март!J41 -> 14 | K8: =март!K41 -> 57 | L8: =март!L41 -> 20 | M8: =март!M41 -> 37 | N8: =март!N41 -> 41 | O8: =март!O41 -> 4 | P8: =март!P41 -> 0 | Q8: =март!Q41 -> 1265 | R8: к началу месяца | S8: =март!S41 -> 3321 | T8: =март!T41 -> 241 | U8: =март!U41 -> 0 | V8: =март!V41 -> 11 | W8: =март!W41 -> 0 | X8: =март!X41 -> 0 | Y8: =март!Y41 -> 0 | Z8: =март!Z41 -> 2768 | AA8: =март!AA41 -> 34 | AB8: =март!AB41 -> 0 | AC8: =март!AC41 -> 60 | AD8: =март!AD41 -> 0 | AE8: =март!AE41 -> 0 | AF8: =март!AF41 -> 0 | AG8: =март!AG41 -> 0 | AH8: =март!AH41 -> 0 | AI8: =март!AI41 -> 0 | AJ8: =март!AJ41 -> 15 | AK8: =март!AK41 -> 0 | AL8: =март!AL41 -> 0 | AM8: =март!AM41 -> 0 | AN8: =март!AN41 -> 0 | AO8: =март!AO41 -> 192
A9: 1 | B9: =SUM(C9:P9) -> 0 | R9: 1 | S9: =SUM(T9:AO9) -> 0
A10: 2 | B10: 0 | R10: 2 | S10: 0
A11: 3 | B11: 0 | R11: 3 | S11: 0
A12: 4 | B12: 0 | R12: 4 | S12: 0
A13: 5 | B13: 0 | R13: 5 | S13: 0
A14: 6 | B14: 0 | R14: 6 | S14: 0
A15: 7 | B15: 0 | R15: 7 | S15: 0
A16: 8 | B16: 0 | R16: 8 | S16: 0
A17: 9 | B17: 0 | R17: 9 | S17: 0
A18: 10 | B18: 0 | R18: 10 | S18: 0
A19: 11 | B19: 0 | R19: 11 | S19: 0
A20: 12 | B20: 0 | R20: 12 | S20: 0
A21: 13 | B21: 0 | R21: 13 | S21: 0
A22: 14 | B22: 0 | R22: 14 | S22: 0
A23: 15 | B23: 0 | R23: 15 | S23: 0
A24: 16 | B24: 0 | R24: 16 | S24: 0
A25: 17 | B25: 0 | R25: 17 | S25: 0
A26: 18 | B26: 0 | R26: 18 | S26: 0
A27: 19 | B27: 0 | R27: 19 | S27: 0
A28: 20 | B28: 0 | R28: 20 | S28: 0
A29: 21 | B29: 0 | R29: 21 | S29: 0
A30: 22 | B30: 0 | R30: 22 | S30: 0
A31: 23 | B31: 0 | R31: 23 | S31: 0
A32: 24 | B32: 0 | R32: 24 | S32: 0
A33: 25 | B33: 0 | R33: 25 | S33: 0
A34: 26 | B34: 0 | R34: 26 | S34: 0
A35: 27 | B35: 0 | R35: 27 | S35: 0
A36: 28 | B36: 0 | R36: 28 | S36: 0
A37: 29 | B37: 0 | R37: 29 | S37: 0
A38: 30 | B38: 0 | R38: 30 | S38: 0
B39: 0 | S39: 0
A40: всего за месяц | B40: 0 | C40: =SUM(C9:C39) -> 0 | D40: 0 | E40: 0 | F40: 0 | G40: 0 | H40: 0 | I40: 0 | J40: 0 | K40: 0 | L40: 0 | M40: 0 | N40: 0 | O40: 0 | P40: 0 | Q40: 0 | R40: всего за месяц | S40: =SUM(T40:AO40) -> 0 | T40: =SUM(T9:T39) -> 0 | U40: 0 | V40: 0 | W40: 0 | X40: 0 | Y40: 0 | Z40: 0 | AA40: 0 | AB40: 0 | AC40: 0 | AD40: 0 | AE40: 0 | AF40: 0 | AG40: 0 | AH40: 0 | AI40: 0 | AJ40: 0 | AK40: 0 | AL40: 0 | AM40: 0 | AN40: 0 | AO40: 0
A41: итого с начала года | B41: =B40+B8 -> 630 | C41: =C40+C8 -> 89 | D41: 114 | E41: 81 | F41: 44 | G41: 66 | H41: 49 | I41: 14 | J41: 14 | K41: 57 | L41: 20 | M41: 37 | N41: 41 | O41: 4 | P41: 0 | Q41: 1265 | R41: итого с начала года | S41: =S40+S8 -> 3321 | T41: =T40+T8 -> 241 | U41: 0 | V41: 11 | W41: 0 | X41: 0 | Y41: 0 | Z41: 2768 | AA41: 34 | AB41: 0 | AC41: 60 | AD41: 0 | AE41: 0 | AF41: 0 | AG41: 0 | AH41: 0 | AI41: 0 | AJ41: 15 | AK41: 0 | AL41: 0 | AM41: 0 | AN41: 0 | AO41: 192

Sheet май
A1: Часть 1. Учет состава читателей и посещаемости за сентябрь месяц 200___ г. | R1: Часть 2 Учет выдачи книг, брошюр, журналов за сентябрь 20__ г.
A3: число рабочих дней_______________
A4: числа месяца | B4: читателей всего | C4: в том числе учащихся классов | N4: отдельные группы читателей | Q4: число посещений | R4: числа месяца | S4: всего выдано | T4: Распределение книг, брошюр и журналов по содержанию | AN4: электронные издания | AO4: Прочие
C5: 1 класс | D5: 2 класс | E5: 3 класс | F5: 4 класс | G5: 5 класс | H5: 6 класс | I5: 7 класс | J5: 8 класс | K5: 9 класс | L5: 10 класс | M5: 11 класс | N5: учителя | O5: вспомог. | P5: прочие | T5: общественно-политическая литература | U5: естествознание, математика | V5: техника | W5: языкознание | X5: литературоведение | Y5: искусство и спорт | Z5: художественная литература | AA5: справочная | AB5: методическая | AC5: учебная | AD5: на татарском языке
AD6: общественно-политическая литература | AE6: естествознание, математика | AF6: техника | AG6: языкознание | AH6: литературоведение | AI6: искусство и спорт | AJ6: художественная литература | AK6: справочная | AL6: методическая | AM6: учебная
A7: 1 | B7: 2 | C7: 3 | D7: 4 | E7: 5 | F7: 6 | G7: 7 | H7: 8 | I7: 9 | J7: 10 | K7: 11 | L7: 12 | M7: 13 | N7: 14 | O7: 15 | P7: 16 | Q7: 17 | R7: 1 | S7: 2 | T7: 3 | U7: 4 | V7: 5 | W7: 6 | X7: 7 | Y7: 8 | Z7: 9 | AA7: 10 | AB7: 11 | AC7: 12 | AD7: 13 | AE7: 14 | AF7: 15 | AG7: 16 | AH7: 17 | AI7: 18 | AJ7: 19 | AK7: 20 | AL7: 21 | AM7: 22 | AN7: 23 | AO7: 24
A8: К началу месяца | B8: =апрель!B41 -> 630 | C8: =апрель!C41 -> 89 | D8: =апрель!D41 -> 114 | E8: =апрель!E41 -> 81 | F8: =апрель!F41 -> 44 | G8: =апрель!G41 -> 66 | H8: =апрель!H41 -> 49 | I8: =апрель!I41 -> 14 | J8: =апрель!J41 -> 14 | K8: =апрель!K41 -> 57 | L8: =апрель!L41 -> 20 | M8: =апрель!M41 -> 37 | N8: =апрель!N41 -> 41 | O8: =апрель!O41 -> 4 | P8: =апрель!P41 -> 0 | Q8: =апрель!Q41 -> 1265 | R8: к началу месяца | S8: =апрель!S41 -> 3321 | T8: =апрель!T41 -> 241 | U8: =апрель!U41 -> 0 | V8: =апрель!V41 -> 11 | W8: =апрель!W41 -> 0 | X8: =апрель!X41 -> 0 | Y8: =апрель!Y41 -> 0 | Z8: =апрель!Z41 -> 2768 | AA8: =апрель!AA41 -> 34 | AB8: =апрель!AB41 -> 0 | AC8: =апрель!AC41 -> 60 | AD8: =апрель!AD41 -> 0 | AE8: =апрель!AE41 -> 0 | AF8: =апрель!AF41 -> 0 | AG8: =апрель!AG41 -> 0 | AH8: =апрель!AH41 -> 0 | AI8: =апрель!AI41 -> 0 | AJ8: =апрель!AJ41 -> 15 | AK8: =апрель!AK41 -> 0 | AL8: =апрель!AL41 -> 0 | AM8: =апрель!AM41 -> 0 | AN8: =апрель!AN41 -> 0 | AO8: =апрель!AO41 -> 192
A9: 1 | B9: =SUM(C9:P9) -> 0 | R9: 1 | S9: =SUM(T9:AO9) -> 0
A10: 2 | B10: 0 | R10: 2 | S10: 0
A11: 3 | B11: 0 | R11: 3 | S11: 0
A12: 4 | B12: 0 | R12: 4 | S12: 0
A13: 5 | B13: 0 | R13: 5 | S13: 0
A14: 6 | B14: 0 | R14: 6 | S14: 0
A15: 7 | B15: 0 | R15: 7 | S15: 0
A16: 8 | B16: 0 | R16: 8 | S16: 0
A17: 9 | B17: 0 | R17: 9 | S17: 0
A18: 10 | B18: 0 | R18: 10 | S18: 0
A19: 11 | B19: 0 | R19: 11 | S19: 0
A20: 12 | B20: 0 | R20: 12 | S20: 0
A21: 13 | B21: 0 | R21: 13 | S21: 0
A22: 14 | B22: 0 | R22: 14 | S22: 0
A23: 15 | B23: 0 | R23: 15 | S23: 0
A24: 16 | B24: 0 | R24: 16 | S24: 0
A25: 17 | B25: 0 | R25: 17 | S25: 0
A26: 18 | B26: 0 | R26: 18 | S26: 0
A27: 19 | B27: 0 | R27: 19 | S27: 0
A28: 20 | B28: 0 | R28: 20 | S28: 0
A29: 21 | B29: 0 | R29: 21 | S29: 0
A30: 22 | B30: 0 | R30: 22 | S30: 0
A31: 23 | B31: 0 | R31: 23 | S31: 0
A32: 24 | B32: 0 | R32: 24 | S32: 0
A33: 25 | B33: 0 | R33: 25 | S33: 0
A34: 26 | B34: 0 | R34: 26 | S34: 0
A35: 27 | B35: 0 | R35: 27 | S35: 0
A36: 28 | B36: 0 | R36: 28 | S36: 0
A37: 29 | B37: 0 | R37: 29 | S37: 0
A38: 30 | B38: 0 | R38: 30 | S38: 0
A39: 31 | B39: 0 | R39: 31 | S39: 0
A40: всего за месяц | B40: 0 | C40: =SUM(C9:C39) -> 0 | D40: 0 | E40: 0 | F40: 0 | G40: 0 | H40: 0 | I40: 0 | J40: 0 | K40: 0 | L40: 0 | M40: 0 | N40: 0 | O40: 0 | P40: 0 | Q40: 0 | R40: всего за месяц | S40: =SUM(T40:AO40) -> 0 | T40: =SUM(T9:T39) -> 0 | U40: 0 | V40: 0 | W40: 0 | X40: 0 | Y40: 0 | Z40: 0 | AA40: 0 | AB40: 0 | AC40: 0 | AD40: 0 | AE40: 0 | AF40: 0 | AG40: 0 | AH40: 0 | AI40: 0 | AJ40: 0 | AK40: 0 | AL40: 0 | AM40: 0 | AN40: 0 | AO40: 0
A41: итого с начала года | B41: =B40+B8 -> 630 | C41: =C40+C8 -> 89 | D41: 114 | E41: 81 | F41: 44 | G41: 66 | H41: 49 | I41: 14 | J41: 14 | K41: 57 | L41: 20 | M41: 37 | N41: 41 | O41: 4 | P41: 0 | Q41: 1265 | R41: итого с начала года | S41: =S40+S8 -> 3321 | T41: =T40+T8 -> 241 | U41: 0 | V41: 11 | W41: 0 | X41: 0 | Y41: 0 | Z41: 2768 | AA41: 34 | AB41: 0 | AC41: 60 | AD41: 0 | AE41: 0 | AF41: 0 | AG41: 0 | AH41: 0 | AI41: 0 | AJ41: 15 | AK41: 0 | AL41: 0 | AM41: 0 | AN41: 0 | AO41: 192

Sheet Часть3
A1: Часть 3. Учет массовой работы (громкие чтения, библиографические обзоры,
A2: литературные и тематические вечера, читательские конференции, книжные выставки и т.д)
A4: Дата проведения | B4: наименование мероприятия и тема | C4: количество обслуж-х | D4: Кто проводил мероприятие и где

Sheet Часть 4
A1: Часть 4. Учет справочно-библиографической работы
A3: Число и месяц | B3: всего подано справок | C3: В том числе
C4: общественно- политическим | D4: естественно- научным | E4: производственно- техническим | F4: справочным | G4: литературно- критическим | H4: прочим
A5: 1 | B5: 2 | C5: 3 | D5: 4 | E5: 5 | F5: 6 | G5: 7 | H5: 8
